[Event "*** Titled Tuesday 3|2 Blitz"]
[Site "Chess.com"]
[Date "2016.06.07"]
[Round "1"]
[White "jeaston1"]
[Black "Rikikits"]
[Result "0-1"]
[WhiteElo "2009"]
[BlackElo "2422"]
[TimeControl "180+2"]
[EndTime "11:02:40 PDT"]
[Termination "Rikikits won by resignation"]

1. d4 {[%clk 0:03:01.5]} 1... Nf6 {[%clk 0:02:54.1]} 2. c4 {[%clk 0:03:03.1]}
2... g6 {[%clk 0:02:54.9]} 3. Nc3 {[%clk 0:03:04.5]} 3... Bg7 {[%clk 0:02:56.3]}
4. e4 {[%clk 0:03:05.4]} 4... O-O {[%clk 0:02:57.9]} 5. f3 {[%clk 0:03:06.5]}
5... d6 {[%clk 0:02:59.4]} 6. Be3 {[%clk 0:03:07.5]} 6... c5 {[%clk 0:03:01]} 7.
d5 {[%clk 0:03:04.2]} 7... e6 {[%clk 0:03:01.8]} 8. Qd2 {[%clk 0:03:05.2]} 8...
a6 {[%clk 0:02:59.5]} 9. Nge2 {[%clk 0:03:02]} 9... exd5 {[%clk 0:03:00.4]} 10.
cxd5 {[%clk 0:03:02.8]} 10... b5 {[%clk 0:03:01.6]} 11. Nc1 {[%clk 0:03:03.4]}
11... Re8 {[%clk 0:03:01.6]} 12. Be2 {[%clk 0:03:02.7]} 12... Nbd7 {[%clk
0:03:02.8]} 13. O-O {[%clk 0:03:03.4]} 13... Ne5 {[%clk 0:03:03.6]} 14. h3
{[%clk 0:02:59.2]} 14... Rb8 {[%clk 0:03:02.1]} 15. Nd3 {[%clk 0:02:54.3]} 15...
Nc4 {[%clk 0:03:02.6]} 16. Qc1 {[%clk 0:02:54.5]} 16... Nxe3 {[%clk 0:03:04]}
17. Qxe3 {[%clk 0:02:55.4]} 17... Nxd5 {[%clk 0:02:54.7]} 18. Nxd5 {[%clk
0:02:54.2]} 18... Bd4 {[%clk 0:02:55.1]} 19. Qxd4 {[%clk 0:02:52]} 19... cxd4
{[%clk 0:02:57]} 20. Rac1 {[%clk 0:02:53]} 20... Bb7 {[%clk 0:02:56.2]} 21. N3f4
{[%clk 0:02:53.1]} 21... g5 {[%clk 0:02:50.3]} 22. Nc7 {[%clk 0:02:37.2]} 22...
gxf4 {[%clk 0:02:46.6]} 23. Nxe8 {[%clk 0:02:37.6]} 23... Qxe8 {[%clk
0:02:48.5]} 24. Bd3 {[%clk 0:02:39.1]} 24... Rc8 {[%clk 0:02:48.9]} 25. b3
{[%clk 0:02:37.4]} 25... Rc3 {[%clk 0:02:48.7]} 26. Rxc3 {[%clk 0:02:37.8]}
26... dxc3 {[%clk 0:02:50.6]} 27. Rc1 {[%clk 0:02:39.4]} 27... Qe5 {[%clk
0:02:52.2]} 28. Rc2 {[%clk 0:02:41]} 28... Qd4+ {[%clk 0:02:52.9]} 29. Kf1
{[%clk 0:02:42.7]} 29... Qxd3+ {[%clk 0:02:54.4]} 0-1

[Event "*** Titled Tuesday 3|2 Blitz"]
[Site "Chess.com"]
[Date "2016.06.07"]
[Round "1"]
[White "Bigfish1995"]
[Black "Journey_to_GrandMaster_YT"]
[Result "1-0"]
[WhiteElo "2613"]
[BlackElo "2344"]
[TimeControl "180+2"]
[EndTime "11:04:17 PDT"]
[Termination "Bigfish1995 won by resignation"]

1. Nf3 {[%clk 0:03:00.9]} 1... Nf6 {[%clk 0:03:00]} 2. c4 {[%clk 0:03:02.6]}
2... d6 {[%clk 0:03:00.5]} 3. g3 {[%clk 0:03:04.5]} 3... Nbd7 {[%clk 0:03:01.3]}
4. Bg2 {[%clk 0:03:06]} 4... e5 {[%clk 0:03:02.3]} 5. O-O {[%clk 0:03:07.6]}
5... Be7 {[%clk 0:03:03.3]} 6. b4 {[%clk 0:03:08.6]} 6... c6 {[%clk 0:03:01.6]}
7. Qb3 {[%clk 0:03:10]} 7... O-O {[%clk 0:03:01.4]} 8. Bb2 {[%clk 0:03:11.5]}
8... Qc7 {[%clk 0:03:00.6]} 9. d3 {[%clk 0:03:12.4]} 9... d5 {[%clk 0:03:00.8]}
10. cxd5 {[%clk 0:03:12.5]} 10... cxd5 {[%clk 0:03:01.5]} 11. Rc1 {[%clk
0:03:12.6]} 11... Qd6 {[%clk 0:03:00.6]} 12. b5 {[%clk 0:03:13.4]} 12... h6
{[%clk 0:02:39.5]} 13. Ba3 {[%clk 0:02:47.1]} 13... Qe6 {[%clk 0:02:39.9]} 14.
Bxe7 {[%clk 0:02:47.9]} 14... Qxe7 {[%clk 0:02:40.8]} 15. Nc3 {[%clk 0:02:48.7]}
15... d4 {[%clk 0:02:34.3]} 16. Nd5 {[%clk 0:02:48.8]} 16... Nxd5 {[%clk
0:02:34.9]} 17. Qxd5 {[%clk 0:02:49.7]} 17... Re8 {[%clk 0:02:33.2]} 18. Rc7
{[%clk 0:02:50.1]} 18... Qe6 {[%clk 0:02:25.8]} 19. Qxe6 {[%clk 0:02:49.6]}
19... Rxe6 {[%clk 0:02:26.3]} 20. Bh3 {[%clk 0:02:50.8]} 20... Nf8 {[%clk
0:01:45.1]} 21. Rac1 {[%clk 0:02:50.1]} 21... Bd7 {[%clk 0:01:31.3]} 22. Bxe6
{[%clk 0:02:50.4]} 22... Bxe6 {[%clk 0:01:31.5]} 23. Nxe5 {[%clk 0:02:49]} 23...
Bxa2 {[%clk 0:01:28.7]} 24. Rxb7 {[%clk 0:02:48.7]} 24... Bd5 {[%clk 0:01:05.2]}
25. Nc6 {[%clk 0:02:49.3]} 25... a6 {[%clk 0:01:00.8]} 26. Ne7+ {[%clk
0:02:49.1]} 1-0

[Event "*** Titled Tuesday 3|2 Blitz"]
[Site "Chess.com"]
[Date "2016.06.07"]
[Round "1"]
[White "JSPrepz"]
[Black "northridgehawk"]
[Result "1-0"]
[WhiteElo "2389"]
[BlackElo "1901"]
[TimeControl "180+2"]
[EndTime "11:04:33 PDT"]
[Termination "JSPrepz won by resignation"]

1. Nf3 {[%clk 0:02:57.2]} 1... Nf6 {[%clk 0:02:10.3]} 2. c4 {[%clk 0:02:59.1]}
2... d5 {[%clk 0:02:06.7]} 3. g3 {[%clk 0:03:01]} 3... g6 {[%clk 0:02:01.9]} 4.
cxd5 {[%clk 0:03:01.5]} 4... Nxd5 {[%clk 0:02:00.7]} 5. d4 {[%clk 0:03:02.7]}
5... Bg7 {[%clk 0:02:01]} 6. Bg2 {[%clk 0:03:03.7]} 6... O-O {[%clk 0:02:02]} 7.
O-O {[%clk 0:03:04.8]} 7... Nb6 {[%clk 0:02:03.9]} 8. e3 {[%clk 0:03:05.8]} 8...
Nc6 {[%clk 0:02:04.2]} 9. Nc3 {[%clk 0:03:07.3]} 9... a5 {[%clk 0:02:04]} 10.
Nh4 {[%clk 0:03:04.8]} 10... Nb4 {[%clk 0:02:02]} 11. f4 {[%clk 0:03:03.1]}
11... c6 {[%clk 0:02:01.8]} 12. a3 {[%clk 0:03:02.6]} 12... N4d5 {[%clk
0:02:01.5]} 13. e4 {[%clk 0:03:03.9]} 13... Nf6 {[%clk 0:01:59.3]} 14. Nf3
{[%clk 0:03:01.3]} 14... Bg4 {[%clk 0:01:58.3]} 15. h3 {[%clk 0:03:01.2]} 15...
Be6 {[%clk 0:01:59.3]} 16. Re1 {[%clk 0:03:00.2]} 16... Qc8 {[%clk 0:02:00.4]}
17. Ng5 {[%clk 0:02:59.5]} 17... Bc4 {[%clk 0:01:59.6]} 18. Kh2 {[%clk
0:02:59.4]} 18... Rd8 {[%clk 0:02:00]} 19. Be3 {[%clk 0:02:59.3]} 19... h6
{[%clk 0:01:58]} 20. Nf3 {[%clk 0:03:00.1]} 20... a4 {[%clk 0:01:58.3]} 21. Rc1
{[%clk 0:03:00.4]} 21... Bb3 {[%clk 0:01:59.2]} 22. Qe2 {[%clk 0:03:01.5]} 22...
Nc4 {[%clk 0:02:00.8]} 23. Bf2 {[%clk 0:03:01.2]} 23... Qc7 {[%clk 0:01:55.1]}
24. Nd1 {[%clk 0:02:53.9]} 24... Qa5 {[%clk 0:01:55.4]} 25. Rxc4 {[%clk
0:02:53.7]} 25... Bxc4 {[%clk 0:01:51.1]} 26. Qxc4 {[%clk 0:02:55.6]} 26... e6
{[%clk 0:01:47.4]} 27. Nc3 {[%clk 0:02:54.4]} 27... Rac8 {[%clk 0:01:40.8]} 28.
Qxa4 {[%clk 0:02:51.1]} 28... Qc7 {[%clk 0:01:40.5]} 29. Rc1 {[%clk 0:02:49.3]}
29... Nd7 {[%clk 0:01:38.7]} 30. Be3 {[%clk 0:02:47.1]} 30... Nb6 {[%clk
0:01:39.4]} 31. Qb3 {[%clk 0:02:47]} 31... Rd7 {[%clk 0:01:34.7]} 32. d5 {[%clk
0:02:47.7]} 32... c5 {[%clk 0:01:30.6]} 33. Nb5 {[%clk 0:02:46.6]} 33... Qd8
{[%clk 0:01:30.7]} 34. Bxc5 {[%clk 0:02:45.5]} 1-0

[Event "*** Titled Tuesday 3|2 Blitz"]
[Site "Chess.com"]
[Date "2016.06.07"]
[Round "1"]
[White "mwpchess"]
[Black "Yaacovn"]
[Result "0-1"]
[WhiteElo "2347"]
[BlackElo "2642"]
[TimeControl "180+2"]
[EndTime "11:04:50 PDT"]
[Termination "Yaacovn won by checkmate"]

1. e4 {[%clk 0:03:00.6]} 1... c6 {[%clk 0:03:01.3]} 2. d4 {[%clk 0:03:00.7]}
2... d5 {[%clk 0:03:03.2]} 3. e5 {[%clk 0:03:02.1]} 3... Bf5 {[%clk 0:03:03.9]}
4. Nf3 {[%clk 0:03:02.6]} 4... e6 {[%clk 0:03:05.1]} 5. Be2 {[%clk 0:03:03.6]}
5... Ne7 {[%clk 0:03:06.3]} 6. O-O {[%clk 0:03:03.7]} 6... Bg6 {[%clk
0:03:07.8]} 7. Nbd2 {[%clk 0:03:03.9]} 7... Nf5 {[%clk 0:03:09.1]} 8. Nb3 {[%clk
0:03:04.1]} 8... Nd7 {[%clk 0:03:09.3]} 9. Bd2 {[%clk 0:03:03.8]} 9... Nb6
{[%clk 0:03:10.2]} 10. Rc1 {[%clk 0:03:02.1]} 10... Be7 {[%clk 0:03:10.6]} 11.
Ba5 {[%clk 0:03:01.6]} 11... O-O {[%clk 0:03:10.9]} 12. Bd3 {[%clk 0:02:56.1]}
12... Bh5 {[%clk 0:03:09.9]} 13. Be2 {[%clk 0:02:55.2]} 13... Qc8 {[%clk
0:03:08]} 14. h3 {[%clk 0:02:51]} 14... Bxf3 {[%clk 0:03:07.2]} 15. Bxf3 {[%clk
0:02:51.5]} 15... Nc4 {[%clk 0:03:08.6]} 16. Be1 {[%clk 0:02:49.9]} 16... Nxb2
{[%clk 0:03:09.2]} 17. Qe2 {[%clk 0:02:46.4]} 17... Nc4 {[%clk 0:03:10]} 18. g3
{[%clk 0:02:44]} 18... f6 {[%clk 0:03:09.9]} 19. exf6 {[%clk 0:02:43.8]} 19...
Bxf6 {[%clk 0:03:11.8]} 20. c3 {[%clk 0:02:44.1]} 20... e5 {[%clk 0:03:12]} 21.
dxe5 {[%clk 0:02:43.6]} 21... Nxe5 {[%clk 0:03:12.7]} 22. Bg2 {[%clk 0:02:43.6]}
22... Re8 {[%clk 0:03:13.9]} 23. Qc2 {[%clk 0:02:43.4]} 23... Nd6 {[%clk
0:03:12.3]} 24. Bd2 {[%clk 0:02:39.1]} 24... Qf5 {[%clk 0:03:13]} 25. Qd1 {[%clk
0:02:35.5]} 25... Rad8 {[%clk 0:03:12.9]} 26. Nd4 {[%clk 0:02:35.5]} 26... Qd7
{[%clk 0:03:12.6]} 27. Rb1 {[%clk 0:02:32.5]} 27... Nec4 {[%clk 0:03:12.8]} 28.
Bf4 {[%clk 0:02:28.6]} 28... Ne4 {[%clk 0:03:14.2]} 29. Qc1 {[%clk 0:02:23.7]}
29... h6 {[%clk 0:03:12.2]} 30. h4 {[%clk 0:02:17.5]} 30... Re7 {[%clk
0:03:04.3]} 31. Kh2 {[%clk 0:02:16.8]} 31... g5 {[%clk 0:03:02.8]} 32. Bh3
{[%clk 0:02:14.8]} 32... Qe8 {[%clk 0:03:01.7]} 33. hxg5 {[%clk 0:02:08.5]}
33... hxg5 {[%clk 0:03:02.9]} 34. Be3 {[%clk 0:02:07.4]} 34... Qh5 {[%clk
0:03:03.3]} 35. Nf5 {[%clk 0:01:57.7]} 35... Rh7 {[%clk 0:02:57.3]} 36. Nh4
{[%clk 0:01:52.9]} 36... gxh4 {[%clk 0:02:55.9]} 37. g4 {[%clk 0:01:54]} 37...
Qe5+ {[%clk 0:02:54.3]} 38. f4 {[%clk 0:01:51.8]} 38... Qxc3 {[%clk 0:02:55.6]}
39. Qxc3 {[%clk 0:01:51.4]} 39... Nxc3 {[%clk 0:02:57.1]} 40. Rbe1 {[%clk
0:01:51.8]} 40... Nxe3 {[%clk 0:02:55.1]} 41. Rxe3 {[%clk 0:01:52.1]} 41... Re7
{[%clk 0:02:56.8]} 42. Ref3 {[%clk 0:01:45]} 42... Re2+ {[%clk 0:02:51.5]} 43.
Kg1 {[%clk 0:01:44.2]} 43... Bd4+ {[%clk 0:02:52.4]} 44. Kh1 {[%clk 0:01:44.9]}
44... Ne4 {[%clk 0:02:54.1]} 45. g5 {[%clk 0:01:45.9]} 45... Ng3+ {[%clk
0:02:55.4]} 46. Rxg3 {[%clk 0:01:46.4]} 46... hxg3 {[%clk 0:02:57.3]} 47. g6
{[%clk 0:01:46.7]} 47... Rh2# {[%clk 0:02:58]} 0-1

[Event "*** Titled Tuesday 3|2 Blitz"]
[Site "Chess.com"]
[Date "2016.06.07"]
[Round "1"]
[White "SidArun"]
[Black "AndreyOstrovskiy"]
[Result "0-1"]
[WhiteElo "2081"]
[BlackElo "2447"]
[TimeControl "180+2"]
[EndTime "11:04:59 PDT"]
[Termination "AndreyOstrovskiy won by resignation"]

1. e4 {[%clk 0:03:01.9]} 1... e5 {[%clk 0:02:59.8]} 2. f4 {[%clk 0:03:02.3]}
2... exf4 {[%clk 0:03:00]} 3. Nf3 {[%clk 0:03:03.3]} 3... Ne7 {[%clk 0:02:58.7]}
4. d4 {[%clk 0:03:00.6]} 4... d5 {[%clk 0:02:59.7]} 5. e5 {[%clk 0:03:00.5]}
5... Ng6 {[%clk 0:03:00]} 6. Bd3 {[%clk 0:03:01.5]} 6... Be7 {[%clk 0:03:00.3]}
7. Bxg6 {[%clk 0:03:00.3]} 7... fxg6 {[%clk 0:03:01.1]} 8. Bxf4 {[%clk
0:03:01.3]} 8... O-O {[%clk 0:03:02.2]} 9. Qd2 {[%clk 0:03:00.7]} 9... c5 {[%clk
0:02:58]} 10. c3 {[%clk 0:03:00.8]} 10... cxd4 {[%clk 0:02:55.9]} 11. cxd4
{[%clk 0:03:01.2]} 11... g5 {[%clk 0:02:36]} 12. Bxg5 {[%clk 0:02:34]} 12...
Bxg5 {[%clk 0:02:35.7]} 13. Qxg5 {[%clk 0:02:34.4]} 13... Qb6 {[%clk 0:02:06.7]}
14. Qd2 {[%clk 0:02:31.6]} 14... Bg4 {[%clk 0:02:02.5]} 15. Nc3 {[%clk
0:02:06.1]} 15... Nc6 {[%clk 0:01:42.4]} 16. O-O-O {[%clk 0:02:03.2]} 16... Rac8
{[%clk 0:01:20.2]} 17. Rhf1 {[%clk 0:01:44.7]} 17... Nb4 {[%clk 0:01:15.5]} 18.
a3 {[%clk 0:01:35.4]} 18... Na2+ {[%clk 0:01:14]} 0-1

[Event "*** Titled Tuesday 3|2 Blitz"]
[Site "Chess.com"]
[Date "2016.06.07"]
[Round "1"]
[White "jcibarra"]
[Black "Durarbayli"]
[Result "1-0"]
[WhiteElo "2660"]
[BlackElo "2324"]
[TimeControl "180+2"]
[EndTime "11:05:03 PDT"]
[Termination "jcibarra won by resignation"]

1. e4 {[%clk 0:03:01.8]} 1... e5 {[%clk 0:02:59.9]} 2. Nf3 {[%clk 0:03:00.7]}
2... Nc6 {[%clk 0:03:01.8]} 3. Bb5 {[%clk 0:03:02.3]} 3... a6 {[%clk 0:02:51.6]}
4. Bxc6 {[%clk 0:03:03.5]} 4... dxc6 {[%clk 0:02:52]} 5. O-O {[%clk 0:03:05.4]}
5... f6 {[%clk 0:02:52.6]} 6. d4 {[%clk 0:03:05.6]} 6... Bg4 {[%clk 0:02:52.7]}
7. c3 {[%clk 0:03:06.3]} 7... Qe7 {[%clk 0:02:50.7]} 8. Nbd2 {[%clk 0:02:42.6]}
8... O-O-O {[%clk 0:02:48.4]} 9. h3 {[%clk 0:02:34.9]} 9... Bh5 {[%clk
0:02:46.2]} 10. dxe5 {[%clk 0:02:23.6]} 10... fxe5 {[%clk 0:02:44.6]} 11. b4
{[%clk 0:02:25.3]} 11... Nf6 {[%clk 0:02:35.4]} 12. Qe2 {[%clk 0:02:24.8]} 12...
g5 {[%clk 0:02:33.4]} 13. a4 {[%clk 0:02:23.8]} 13... g4 {[%clk 0:02:31.5]} 14.
hxg4 {[%clk 0:02:24.5]} 14... Bxg4 {[%clk 0:02:29.5]} 15. b5 {[%clk 0:02:25.8]}
15... Nh5 {[%clk 0:01:25.3]} 16. bxc6 {[%clk 0:02:18.5]} 16... Nf4 {[%clk
0:01:25.3]} 17. cxb7+ {[%clk 0:02:19.1]} 17... Kxb7 {[%clk 0:01:26.5]} 18. Rb1+
{[%clk 0:02:19.1]} 18... Ka7 {[%clk 0:01:27.6]} 19. Qe3+ {[%clk 0:02:16.3]}
19... c5 {[%clk 0:01:26.8]} 20. Nc4 {[%clk 0:01:50.1]} 20... Rd3 {[%clk
0:01:24.4]} 21. Nfxe5 {[%clk 0:01:48.7]} 1-0

[Event "*** Titled Tuesday 3|2 Blitz"]
[Site "Chess.com"]
[Date "2016.06.07"]
[Round "1"]
[White "BjarkeSahl"]
[Black "Keaton87"]
[Result "1-0"]
[WhiteElo "2161"]
[BlackElo "2478"]
[TimeControl "180+2"]
[EndTime "11:05:15 PDT"]
[Termination "BjarkeSahl won by checkmate"]

1. d4 {[%clk 0:03:00.1]} 1... d5 {[%clk 0:03:01.2]} 2. Nf3 {[%clk 0:02:59.1]}
2... e6 {[%clk 0:03:02.5]} 3. Bf4 {[%clk 0:02:51.9]} 3... Nf6 {[%clk 0:03:01.6]}
4. e3 {[%clk 0:02:53.2]} 4... c5 {[%clk 0:03:00.3]} 5. c3 {[%clk 0:02:54.6]}
5... Nc6 {[%clk 0:03:01.2]} 6. Bd3 {[%clk 0:02:55.1]} 6... Bd6 {[%clk
0:03:01.4]} 7. Bg3 {[%clk 0:02:55.4]} 7... O-O {[%clk 0:03:01.9]} 8. O-O {[%clk
0:02:56.4]} 8... Qe7 {[%clk 0:03:00.7]} 9. Nbd2 {[%clk 0:02:56.7]} 9... Nd7
{[%clk 0:03:00.8]} 10. e4 {[%clk 0:02:57.1]} 10... dxe4 {[%clk 0:02:58]} 11.
Nxe4 {[%clk 0:02:57.7]} 11... Bxg3 {[%clk 0:02:59.1]} 12. Nxg3 {[%clk
0:02:52.3]} 12... cxd4 {[%clk 0:02:59.8]} 13. cxd4 {[%clk 0:02:52]} 13... Nf6
{[%clk 0:02:59.1]} 14. a3 {[%clk 0:02:50.3]} 14... Rd8 {[%clk 0:02:54.9]} 15.
Re1 {[%clk 0:02:42.1]} 15... Qd6 {[%clk 0:02:55.9]} 16. Ne4 {[%clk 0:02:29.2]}
16... Nxe4 {[%clk 0:02:56.9]} 17. Rxe4 {[%clk 0:02:30.4]} 17... Ne7 {[%clk
0:02:46.9]} 18. Qc2 {[%clk 0:02:22.2]} 18... Bd7 {[%clk 0:02:38.4]} 19. Ne5
{[%clk 0:02:07.8]} 19... Rac8 {[%clk 0:02:31.3]} 20. Qe2 {[%clk 0:02:07.7]}
20... Nf5 {[%clk 0:02:30]} 21. Qh5 {[%clk 0:02:04.6]} 21... g6 {[%clk
0:02:26.6]} 22. Qh3 {[%clk 0:01:58]} 22... Nxd4 {[%clk 0:02:08.2]} 23. Nxf7
{[%clk 0:01:53.6]} 23... Kxf7 {[%clk 0:01:59.5]} 24. Qxh7+ {[%clk 0:01:54]}
24... Kf6 {[%clk 0:01:58.4]} 25. Rg4 {[%clk 0:01:46.6]} 25... Nf5 {[%clk
0:01:57.1]} 26. Qxg6+ {[%clk 0:01:42.7]} 26... Ke7 {[%clk 0:01:42.1]} 27. Bxf5
{[%clk 0:01:43.1]} 27... exf5 {[%clk 0:01:41]} 28. Re1+ {[%clk 0:01:44.2]} 28...
Be6 {[%clk 0:01:41.9]} 29. Qh7+ {[%clk 0:01:44.4]} 29... Kf8 {[%clk 0:01:40.4]}
30. Qh8+ {[%clk 0:01:43.1]} 30... Kf7 {[%clk 0:01:34.7]} 31. Rg7+ {[%clk
0:01:43.4]} 31... Kf6 {[%clk 0:01:36.1]} 32. Rg8+ {[%clk 0:01:44.2]} 32... Kf7
{[%clk 0:01:29.2]} 33. Qg7# {[%clk 0:01:45.1]} 1-0

[Event "*** Titled Tuesday 3|2 Blitz"]
[Site "Chess.com"]
[Date "2016.06.07"]
[Round "1"]
[White "Kacparov"]
[Black "ItalianMachine"]
[Result "0-1"]
[WhiteElo "2571"]
[BlackElo "2327"]
[TimeControl "180+2"]
[EndTime "11:05:20 PDT"]
[Termination "ItalianMachine won by checkmate"]

1. e4 {[%clk 0:03:00.6]} 1... e5 {[%clk 0:03:00.2]} 2. Nf3 {[%clk 0:03:00.8]}
2... Nc6 {[%clk 0:03:01.3]} 3. Bb5 {[%clk 0:03:01.7]} 3... a6 {[%clk 0:03:02.8]}
4. Ba4 {[%clk 0:03:02]} 4... Nf6 {[%clk 0:03:04.4]} 5. d3 {[%clk 0:03:01.4]}
5... b5 {[%clk 0:03:05.2]} 6. Bb3 {[%clk 0:03:02.7]} 6... Be7 {[%clk 0:03:06.6]}
7. O-O {[%clk 0:03:03.9]} 7... O-O {[%clk 0:03:08.1]} 8. a4 {[%clk 0:03:05.1]}
8... b4 {[%clk 0:03:07.7]} 9. a5 {[%clk 0:03:05.8]} 9... d6 {[%clk 0:03:06.9]}
10. h3 {[%clk 0:03:07.1]} 10... Be6 {[%clk 0:03:07.2]} 11. Nbd2 {[%clk 0:03:06]}
11... Nb8 {[%clk 0:03:03]} 12. c3 {[%clk 0:03:06]} 12... bxc3 {[%clk 0:03:01.8]}
13. bxc3 {[%clk 0:03:07.9]} 13... Nbd7 {[%clk 0:03:02.2]} 14. Bxe6 {[%clk
0:03:06.6]} 14... fxe6 {[%clk 0:03:03.3]} 15. Ba3 {[%clk 0:03:07.8]} 15... Re8
{[%clk 0:02:46.6]} 16. Qb3 {[%clk 0:03:07.6]} 16... Bf8 {[%clk 0:02:43.4]} 17.
d4 {[%clk 0:03:04.5]} 17... Rb8 {[%clk 0:02:42.2]} 18. Qa2 {[%clk 0:03:05.1]}
18... exd4 {[%clk 0:02:40.9]} 19. Nxd4 {[%clk 0:03:04.1]} 19... d5 {[%clk
0:02:28]} 20. Nc6 {[%clk 0:03:01.7]} 20... Qc8 {[%clk 0:02:29]} 21. Nxb8 {[%clk
0:03:02.9]} 21... Qxb8 {[%clk 0:02:29.3]} 22. Rab1 {[%clk 0:03:03.7]} 22... Qa7
{[%clk 0:02:29.4]} 23. Bxf8 {[%clk 0:03:04.8]} 23... Rxf8 {[%clk 0:02:28.6]} 24.
exd5 {[%clk 0:03:05.9]} 24... Nxd5 {[%clk 0:02:26.7]} 25. Ne4 {[%clk 0:03:04.6]}
25... Ne5 {[%clk 0:02:19.3]} 26. c4 {[%clk 0:02:58.2]} 26... Nf4 {[%clk
0:02:18.3]} 27. c5 {[%clk 0:02:39.2]} 27... Qa8 {[%clk 0:02:18.3]} 28. f3 {[%clk
0:02:26]} 28... Qe8 {[%clk 0:02:05.9]} 29. Kh2 {[%clk 0:02:15]} 29... Qh5 {[%clk
0:01:55.1]} 30. Rbe1 {[%clk 0:02:11.5]} 30... h6 {[%clk 0:01:23.3]} 31. Ng3
{[%clk 0:02:09.5]} 31... Qg5 {[%clk 0:01:23.6]} 32. Re4 {[%clk 0:02:09.8]} 32...
Neg6 {[%clk 0:01:20.4]} 33. Ne2 {[%clk 0:02:03.6]} 33... Qxg2# {[%clk
0:01:20.5]} 0-1

[Event "*** Titled Tuesday 3|2 Blitz"]
[Site "Chess.com"]
[Date "2016.06.07"]
[Round "1"]
[White "Philofive"]
[Black "Alexander_Moskalenko"]
[Result "0-1"]
[WhiteElo "2355"]
[BlackElo "2663"]
[TimeControl "180+2"]
[EndTime "11:05:38 PDT"]
[Termination "Alexander_Moskalenko won on time"]

1. d4 {[%clk 0:03:01.5]} 1... Nf6 {[%clk 0:02:58.3]} 2. Bg5 {[%clk 0:03:01.4]}
2... d5 {[%clk 0:02:56.3]} 3. e3 {[%clk 0:03:00.7]} 3... g6 {[%clk 0:02:55.9]}
4. Bxf6 {[%clk 0:02:59.8]} 4... exf6 {[%clk 0:02:56.9]} 5. g3 {[%clk 0:03:00.8]}
5... c6 {[%clk 0:02:58.2]} 6. Bg2 {[%clk 0:02:57.1]} 6... Bd6 {[%clk 0:02:58.8]}
7. Ne2 {[%clk 0:02:56.1]} 7... h5 {[%clk 0:02:56.9]} 8. b3 {[%clk 0:02:28.8]}
8... h4 {[%clk 0:02:19.9]} 9. c4 {[%clk 0:02:29.1]} 9... Bg4 {[%clk 0:02:14.2]}
10. gxh4 {[%clk 0:01:37.4]} 10... Rxh4 {[%clk 0:02:13.4]} 11. h3 {[%clk
0:01:35]} 11... Bxe2 {[%clk 0:02:05.9]} 12. Qxe2 {[%clk 0:01:34.8]} 12... Qa5+
{[%clk 0:02:07]} 13. Kf1 {[%clk 0:01:26.1]} 13... Nd7 {[%clk 0:02:05]} 14. c5
{[%clk 0:01:27.1]} 14... Be7 {[%clk 0:02:04.6]} 15. a3 {[%clk 0:01:26.8]} 15...
Qc7 {[%clk 0:02:05.3]} 16. b4 {[%clk 0:01:27.9]} 16... a6 {[%clk 0:02:06.7]} 17.
Nc3 {[%clk 0:01:28.5]} 17... f5 {[%clk 0:02:08.1]} 18. Ke1 {[%clk 0:01:24.5]}
18... Nf6 {[%clk 0:02:08.7]} 19. Kd2 {[%clk 0:01:25.1]} 19... Ne4+ {[%clk
0:02:07]} 20. Nxe4 {[%clk 0:01:21.6]} 20... fxe4 {[%clk 0:02:08.9]} 0-1

[Event "*** Titled Tuesday 3|2 Blitz"]
[Site "Chess.com"]
[Date "2016.06.07"]
[Round "1"]
[White "platy3"]
[Black "bugsbunny444"]
[Result "1-0"]
[WhiteElo "2684"]
[BlackElo "2357"]
[TimeControl "180+2"]
[EndTime "11:05:51 PDT"]
[Termination "platy3 won on time"]

1. e4 {[%clk 0:03:01.9]} 1... e6 {[%clk 0:02:59.4]} 2. d4 {[%clk 0:03:01.5]}
2... d5 {[%clk 0:02:59.7]} 3. Nd2 {[%clk 0:03:02.4]} 3... Nf6 {[%clk 0:02:59.9]}
4. e5 {[%clk 0:03:03.3]} 4... Nfd7 {[%clk 0:03:01]} 5. Bd3 {[%clk 0:03:04.3]}
5... c5 {[%clk 0:03:02.4]} 6. c3 {[%clk 0:03:05.9]} 6... Nc6 {[%clk 0:03:03.7]}
7. Ngf3 {[%clk 0:03:07.6]} 7... h6 {[%clk 0:03:00.9]} 8. O-O {[%clk 0:03:06.2]}
8... g5 {[%clk 0:02:59.3]} 9. h3 {[%clk 0:03:07.2]} 9... h5 {[%clk 0:02:57.3]}
10. dxc5 {[%clk 0:02:41.7]} 10... g4 {[%clk 0:02:47.4]} 11. Nd4 {[%clk
0:02:39.7]} 11... Ndxe5 {[%clk 0:02:33.7]} 12. N2b3 {[%clk 0:02:38.8]} 12...
gxh3 {[%clk 0:02:25.2]} 13. g3 {[%clk 0:02:36.7]} 13... h4 {[%clk 0:02:11.3]}
14. Bf4 {[%clk 0:02:33.5]} 14... Bg7 {[%clk 0:01:36.9]} 15. Re1 {[%clk 0:02:30]}
15... hxg3 {[%clk 0:01:32.1]} 16. fxg3 {[%clk 0:02:29.3]} 16... h2+ {[%clk
0:01:15.3]} 17. Kh1 {[%clk 0:02:30.2]} 17... a6 {[%clk 0:00:54.9]} 18. Nxc6
{[%clk 0:02:11.8]} 18... Nxc6 {[%clk 0:00:55.7]} 19. Qg4 {[%clk 0:02:06.7]}
19... Bf6 {[%clk 0:00:36.6]} 20. Bd6 {[%clk 0:02:02.7]} 20... Bd7 {[%clk
0:00:06.4]} 21. Re2 {[%clk 0:01:55.6]} 1-0